Cogmind - Beta 14 @@@ ROGUE MODE // 2025.03.23 @ 15:09:28 Player: Folded_Phoenix Result: Destroyed by YI-UF0 with YI-UF0's Doublenader Performance ------------- Evolutions (0) 0 Regions Visited (2) 400 Robots Destroyed (10) 50 Value Destroyed (333) 333 Prototype IDs (1) 20 Alien Tech Used (0) 0 Bonus (0) 0 TOTAL SCORE: 803 Bonus ------- None Cogmind --------- Core Integrity 0/250 Matter 295/300 Energy 68/100 System Corruption 0% Temperature Cool (75) Movement Core (150) Ox2 Location -10/Mines Parts ------- > --- POWER (1) -------- (None) > --- PROPULSION (2) --- (None) > --- UTILITY (2) ------ Small Storage Unit > --- WEAPON (2) ------- Particle Gun > --- INVENTORY (8) ---- Huge Storage Unit Signal Interpreter Decoy Drone Bay (16/16) Datajack Mining Laser Peak State ------------ > --- POWER ------------ Light Ion Engine > --- PROPULSION ------- Aluminum Leg Aluminum Leg > --- UTILITY ---------- Decoy Drone Bay > --- WEAPON ----------- Particle Gun Light Assault Rifle > --- INVENTORY -------- Light Ion Engine Light Treads Aluminum Leg Huge Storage Unit Mining Laser [Rating: 20] Favorites ----------- Power Light Ion Engine Engine Light Ion Engine Propulsion Light Treads Treads Light Treads Leg Aluminum Leg Utility Small Storage Unit Device Decoy Drone Bay Storage Small Storage Unit Protection Utility Shielding Weapon Light Assault Rifle Energy Gun Particle Gun Ballistic Gun Light Assault Rifle Build | -11 -10 -10 ------- Run | Yrd Mat Min Slots Evolved . | . . . Power . | . . . Propulsion . | . . . Utility . | . . . Weapon . | . . . Parts Attached 18 | 6 6 6 Power 3 | 1 1 1 Engine 3 | 1 1 1 Core . | . . . Reactor . | . . . Propulsion 5 | 2 2 1 Treads 2 | 2 . . Leg 3 | . 2 1 Wheel . | . . . Hover . | . . . Flight . | . . . Utility 6 | 1 2 3 Device 1 | . . 1 Storage 4 | 1 2 1 Processor . | . . . Hackware . | . . . Protection 1 | . . 1 Artifact . | . . . Weapon 4 | 2 1 1 Energy Gun 2 | . 1 1 Energy Cannon . | . . . Ballistic Gun 2 | 2 . . Ballistic Cannon . | . . . Launcher . | . . . Special Weapon . | . . . Impact Weapon . | . . . Slashing Weapon . | . . . Piercing Weapon . | . . . Special Melee Weapon . | . . . Unidentified Prototypes 1 | . . 1 Parts Lost 9 | . 3 6 Power 3 | . 1 2 Propulsion 4 | . 1 3 Utility . | . . . Weapon 2 | . 1 1 Highest Loss Streak 6 | . 3 6 To Critical Strikes . | . . . Average Slot Usage (%) 81 | . 79 85 Engine 13 | . 12 14 Treads 12 | . 20 . Leg 13 | . 5 27 Storage 14 | . 14 14 Energy Gun 9 | . 3 20 Ballistic Gun 17 | . 23 7 Peak Build Rating 20 | 6 7 20 Average Rating 6 | 4 5 8 On Entrance 4 | . 6 7 Naked Turns . | . . . Heaviest Build 21 | 10 12 21 Greatest Support 40 | 40 40 20 Greatest Overweight (x) 3 | 3 . 1 Average Overweight (x) . | . . . Largest Inventory Capacity 25 | 8 25 8 Average Capacity 8 | 7 8 7 Most Carried 8 | 1 5 8 Average Carried 3 | . 2 7 Final Capacity 8 | 8 8 8 Final Carried 6 | 1 5 6 Class Distribution -------------------- 85% | Mutant 14% | Scavenger-Mutant Dominant Class ---------------- Mutant | -10/Materials Mutant | -10/Mines Resources | -11 -10 -10 ----------- Run | Yrd Mat Min Matter Collected 423 | 196 180 47 Remotely . | . . . Salvage Created 457 | . 400 57 Parts 19 | . 16 3 Haulers Intercepted . | . . . Recyclers Shooed . | . . . Parts Field Recycled . | . . . Retrieved Matter . | . . . Parts Self-Destructed . | . . . Prevented . | . . . Kills | -11 -10 -10 ------- Run | Yrd Mat Min Combat Hostiles Destroyed 8 | . 6 2 Guns 8 | . 6 2 Classes Destroyed 3 | . 3 . Recycler 1 | . 1 . Watcher 1 | . 1 . Grunt 8 | . 6 2 Best Kill Streak 3 | . 3 1 Combat Bots Only 2 | . 2 1 Max Kills in Single Turn 1 | . 1 1 Gunslinging . | . . . Exploded . | . . . Melee . | . . . Uniques/NPCs Destroyed . | . . . Combat | -11 -10 -10 -------- Run | Yrd Mat Min Hostile Shots Fired 79 | . 56 23 Missed 16 | . 13 3 Damage Taken 1173 | . 570 603 Core 267 | . 109 158 Absorbed by Shields . | . . . Redirected to Shielding 5 | . . 5 Core Remaining (%) 100 | 100 . . Volleys Fired 54 | . 45 9 Largest 2 | . 2 2 Hottest 105 | . 85 105 Shots Fired 96 | . 78 18 Gun 96 | . 78 18 Cannon . | . . . Launcher . | . . . Special . | . . . Kinetic 78 | . 75 3 Thermal 18 | . 3 15 Explosive . | . . . Electromagnetic . | . . . Robot Hit Streak 13 | . 13 7 Robot Miss Streak 4 | . 4 2 Penetration Max . | . . . Secondary Targets 1 | . 1 . Max Gunslinging Chain 1 | . 1 . Shots Hit Robots 61 | . 49 12 Core Hits 24 | . 21 3 Critical Kills . | . . . Critical Parts Destroyed 1 | . . 1 Critical Strikes 2 | . . 2 Burn 1 | . . 1 Destroy 1 | . . 1 Melee Attacks . | . . . Impact . | . . . Slashing . | . . . Piercing . | . . . Sneak Attacks . | . . . Combat Hostiles . | . . . Follow-up Attacks . | . . . Damage Inflicted 539 | . 385 154 Guns 539 | . 385 154 Cannons . | . . . Explosions . | . . . Melee . | . . . Ramming . | . . . Kinetic 400 | . 385 15 Thermal 139 | . . 139 Explosive . | . . . Electromagnetic . | . . . Impact . | . . . Slashing . | . . . Piercing . | . . . Highest Corruption . | . . . Average Corruption . | . . . Corruption Purged . | . . . Corruption Blocked . | . . . Overload Shots . | . . . Overflow Damage . | . . . Projectiles . | . . . Explosions . | . . . Melee . | . . . Knockbacks . | . . . Impact . | . . . Kinetic . | . . . Secondary . | . . . Self-Inflicted Damage . | . . . Shots . | . . . Rammed . | . . . Targets Rammed . | . . . Kicked . | . . . Crushed . | . . . Highest Temperature 110 | . 88 110 Average Temperature 29 | . 16 50 Received Heat Transfer 360 | . 327 33 Siege Activations . | . . . Robots Corrupted . | . . . Combat Hostiles . | . . . Parts Fried . | . . . Impact Corruptions . | . . . Robots Melted . | . . . Combat Hostiles . | . . . Parts Melted . | . . . Heat Transferred 408 | . . 408 Parts Sabotaged . | . . . Parts Stolen . | . . . Parts Stripped . | . . . Power Chain Reactions . | . . . Alert | -11 -10 -10 ------- Run | Yrd Mat Min Peak Influence 162 | . 162 83 Initial 3 | . . 3 Average 65 | . 94 31 Maximum Alert Level . | . . . Low Security (%) 100 | 100 100 100 Level 1 . | . . . Level 2 . | . . . Level 3 . | . . . Level 4 . | . . . Level 5 . | . . . High Security . | . . . Max Security . | . . . Squads Dispatched 1 | . 1 . Investigation . | . . . Extermination . | . . . Reinforcement 1 | . 1 . Assault . | . . . Garrison . | . . . Intercept . | . . . Searches Triggered . | . . . Construction Impeded . | . . . Haulers Reinforced . | . . . Active Scanning Responses . | . . . Cargo Convoy Interrupts . | . . . Stealth | -11 -10 -10 --------- Run | Yrd Mat Min Distress Signals 1 | . 1 . Communications Jammed . | . . . Distress Signals . | . . . Times Spotted 14 | . 10 4 Peak Tracking Total 3 | . 3 2 Tactical Retreats 1 | . . 1 Traps | -11 -10 -10 ------- Run | Yrd Mat Min Traps Triggered . | . . . Indirectly . | . . . Trap Hack Attempts . | . . . Triggered . | . . . Disarmed . | . . . Reprogrammed . | . . . Reused . | . . . Traps Extracted . | . . . Installed . | . . . Triggered . | . . . Machines | -11 -10 -10 ---------- Run | Yrd Mat Min Machines Disabled . | . . . Max in Single Turn . | . . . Machines Repaired . | . . . Machines Dismantled . | . . . Machines Sabotaged . | . . . Overloaded Fab Kills . | . . . Hacking | -11 -10 -10 --------- Run | Yrd Mat Min Machines Accessed 5 | . 4 1 Terminals 4 | . 4 . Fabricators . | . . . Repair Stations . | . . . Recycling Units . | . . . Scanalyzers . | . . . Garrison Access . | . . . Total Hacks 6 | . 5 1 Successful 2 | . 1 1 Failed 4 | . 4 . Catastrophic 2 | . 2 . Database Lockouts . | . . . Manual 4 | . 4 . Terminals 5 | . 5 . Fabricators . | . . . Repair Stations . | . . . Recycling Units . | . . . Scanalyzers . | . . . Garrison Access . | . . . Terminal Hacks 2 | . 1 1 Open Door 1 | . . 1 Branch Access Points 1 | . 1 . Fabricator Hacks . | . . . Repair Station Hacks . | . . . Recycling Unit Hacks . | . . . Scanalyzer . | . . . Garrison Access Hacks . | . . . Unauthorized Hacks . | . . . Terminals . | . . . Fabricators . | . . . Repair Stations . | . . . Recycling Units . | . . . Scanalyzers . | . . . Garrison Access . | . . . Data Cores Recovered . | . . . Used . | . . . Hacking Detections 2 | . 2 . Full Trace Events . | . . . Feedback Events . | . . . Feedback Blocked . | . . . Robot Schematics Acquired . | . . . Robots Built . | . . . Authchips . | . . . Time . | . . . Total Robot Build Rating . | . . . Part Schematics Acquired . | . . . Parts Built . | . . . Authchips . | . . . Time . | . . . Total Part Build Rating . | . . . Parts Repaired . | . . . Time . | . . . Parts Recycled . | . . . Recycled Matter . | . . . Retrieved Matter . | . . . Retrieved Components . | . . . Parts Scanalyzed . | . . . Part Schematics Acquired . | . . . Parts Damaged . | . . . Bothacking | -11 -10 -10 ------------ Run | Yrd Mat Min Used RIF Installer . | . . . Robots Hacked . | . . . Non-combat . | . . . Combat . | . . . Robot Hacks Applied . | . . . Relay Couplers Released . | . . . Fabnet Peak Effective % . | . . . Robots Rewired . | . . . Allies Hacked . | . . . Hacks Repelled . | . . . Allies | -11 -10 -10 -------- Run | Yrd Mat Min Total Allies . | . . . Largest Group . | . . . Highest-Rated Group . | . . . Highest-Rated Ally . | . . . Total Orders . | . . . Ally Attacks . | . . . Total Damage . | . . . Kills . | . . . Allies Corrupted . | . . . Allies Melted . | . . . Intel | -11 -10 -10 ------- Run | Yrd Mat Min Robot Analysis Total . | . . . Derelict Logs Recovered 1 | . . 1 Drone Launches . | . . . Drone Recoveries . | . . . Exploration | -11 -10 -10 ------------- Run | Yrd Mat Min Turns Passed 724 | 50 420 254 Spaces Moved 387 | 28 190 169 Core 7 | 7 . . Treads 159 | 21 138 . Legs 221 | . 52 169 Wheels . | . . . Hover . | . . . Flight . | . . . Fastest Speed 50 | 50 120 120 Average Speed 136 | 148 149 120 Slowest Speed 200 | 200 160 190 Overloaded Moves . | . . . Propulsion Burnouts . | . . . Robots Hopped . | . . . Cave-ins Triggered . | . . . Exploration Rate (%) 25 | 3 35 38 Regions Visited 2 Branch Regions 1 Pre-discovered Areas . | . . . Known Exits Taken 1 | . 1 . Unknown Exits Taken 1 | 1 . . Scrap Searched . | . . . Spaces Dug . | . . . Terrain Destroyed . | . . . Melee . | . . . Projectile . | . . . AOE . | . . . Terrain Rammed . | . . . Walls Destroyed . | . . . Machines Disabled . | . . . Actions | -11 -10 -10 --------- Run | Yrd Mat Min Total 500 | 34 263 203 Wait 26 | . 15 11 Move 385 | 27 189 169 Hop . | . . . Pick Up 10 | 1 6 3 Fast Attach 12 | 6 2 4 Attach 5 | . 3 2 Detach 1 | . 1 . Swap 1 | . 1 . Drop 6 | . 1 5 Fire 54 | . 45 9 Melee . | . . . Ram . | . . . Kick . | . . . Crush . | . . . Escape Stasis . | . . . Rewire . | . . . Trap . | . . . Miscellaneous . | . . . Route ------- -11/Scrapyard -10/Materials -10/Mines History --------- Turn | Location | Event 19 | -11/Scrapyard | Discovered new exit (range 15) 51 | -11/Scrapyard | Entered Materials 305 | -10/Materials | Build established: Mutant 372 | -10/Materials | Lost 3 parts (1p1n1w) 430 | -10/Materials | Discovered new exit (range 8) 457 | -10/Materials | Identified exit to Mines 471 | -10/Materials | Entered Mines 495 | -10/Mines | Learned 2 Materials zone layouts 517 | -10/Mines | Found the Drone Emporium 524 | -10/Mines | Found Prototype Device 524 | -10/Mines | Identified Decoy Drone Bay 712 | -10/Mines | Core integrity fell below 50% 720 | -10/Mines | Core integrity fell below 20% 725 | -10/Mines | Destroyed by YI-UF0 with YI-UF0's Doublenader Last Messages --------------- The unstable cave ceiling collapses. U-05 Engineer builds a Wall. U-05 Engineer lays Concrete. U-05 Engineer builds a Wall. U-05 Engineer lays Concrete. U-05 Engineer builds a Wall. K-01 Serf collects debris. U-05 Engineer lays Concrete. U-05 Engineer builds a Wall. Lgt. Ion Engine destroyed. Destroyed Shock Absorption System. The unstable cave ceiling collapses. YI-UF0 suffers critical hit (Burn). Aluminum Leg destroyed. YI-UF0 mumbles something. The unstable cave ceiling collapses. Lgt. Ion Engine destroyed. Aluminum Leg destroyed. The unstable cave ceiling collapses. Sml. Laser destroyed. Map ----- +----------------------------------------------------+ | ???????????????????????????????????????#???? | | ?????????????????????????????????????? #???? | | ????????????????????????????####?????? #???? | | ???????????????????????????## ##???? #???? | | ???????????????????????????# ##??? #???? | | ???????????????????????????# #### #???? | | ????????????????????????????# #???? | | ????????????????????????????# #???? | | ????????????????????????????# #???? | | ????????????????????????????# ## #???? | | ????????????????????????????# ### #???? | | ?????????????????????######## ### #???? | | ?????????????????????# #??? | | ?????????????????????# #### #?? | | ???????????????# ##### ########??? """ #? | | ???????????????# #?????????? """ #? | | ???????????????####### #?????????? """ #? | | ?????????####??????### #?????????? #? | | ?????##### ##????## #?????????? ? ##? | | ????##""## #??### #######???? ##????? | | ????#" # #### #???? #?????? | | ????#" ## ##???? #?????? | | ????#" # #???? #?????? | | ????#" #X #???? ?????? | | ????##""## # #???? ?????? | | ?????###### @ #???????????? | | ??#####???## # ##???????????? | | ?## ##???## # #????????????? | | ?# #????## ## ##????????????? | | ?# = ####### ####### #?????????????? | | ##! ## # ## #?????# #?????????????? | | ## # ####??# #?????????????? | | ### #?????????????? | | ! #### ## g #?????????????? | | # % * ##?????????????? | | # # ## ### #??????????????? | | # ## # # # ??????????????? | | ##### # # ###### ## ??????????????? | | ?# ## #???##?#### ??????????????? | | ?# #??????????# ??????????????? | | ?# ## #???????????# ???????????????? | | ?# ?## ##????????????????????????????? | | ?# ??### #?????????????????????????????? | | ? ?????### #????????????????????????????? | | ???????## ???????????????????????????? | | ????????# ??????????????????????????? | | ?????????# ?????????????????????????? | | ???????????## ???????????????????????? | | ?????????????# ####??????????????????????? | | ??????????????## #?????????????????????????? | +----------------------------------------------------+ Best States ------------- Heat Dissipation 25 Energy Generation 10 Energy Capacity 125 Matter Stores 300 Matter Capacity 300 Sight Range 16 Terrain Scan Density 10 Utility Shielding 33 Evasion (%) 55 Recoil Reduction 2 Item Schematics ----------------- None Robot Schematics ------------------ None Fabricated ------------ Nothing Alien Tech Used ----------------- None Achievements -------------- None Challenges ------------ None Game ------ Seed ActuatorEfficiencyPod Manual? 0 Play Time 00:09:01 Cumulative 12.1 hours Start 2025.03.23 @ 14:58:34 End 2025.03.23 @ 15:09:28 Sessions 1 Manual Loads 0 Difficulty Rogue Special Mode None Game No. 16 Rogue 16 Adventurer 0 Explorer 0 Win Type - Total 0 Types 0/0/0/0/0/0/0/0/0 Lore% 13 Gallery% 22 Achievement% 18 Wizard Run 0 Options --------- Layout 1 ASCII 0 Keyboard 0 Movement Mouse Keybinds 0 Fullscreen 1 Font 24/Smallcaps Map View 50x35 Zoom Use 0% Tactical HUD 0 Map Filters NONE Filters NONE Steam 1 RUN: 5e54ab57-fc7c-4a10-9e06-696986527b8b